fUST/lending_fUST_20250725
["ID","MTS","AMOUNT","RATE_DAILY","PERIOD"]
[374850906,1753455035928,-280.33080621,0.00023273,2]
[374850907,1753455035937,-500.0,0.00023273,2]
[374850908,1753455035946,-500.0,0.00023273,2]
[374850909,1753455035955,-500.0,0.00023273,2]
[374850910,1753455035964,-500.0,0.00023273,2]
[374850911,1753455035973,-500.0,0.00023273,2]
[374850912,1753455035987,-500.55543963,0.00023273,2]
[374850913,1753455035996,-500.0,0.00023273,2]
[374850914,1753455036005,-189.96740107,0.00023273,2]
[374850915,1753455036014,-500.0,0.00023273,2]
[374850916,1753455036023,-524.31518237,0.00023273,2]
[374850917,1753455036032,-500.0,0.00023273,2]
[374850918,1753455036041,-500.0,0.00023273,2]
[374850919,1753455036050,-4091.94517612,0.00023283,2]
[374850920,1753455036059,-460.0,0.00023286,2]
[374850921,1753455036068,-460.0,0.00023286,2]
[374850922,1753455036077,-700.51,0.00023286,2]
[374850923,1753455036086,-624.07,0.00023287,2]
[374850924,1753455036095,-541.31,0.00023287,2]
[374850925,1753455036104,-604.7,0.00023287,2]
[374850926,1753455036114,-460.0,0.00023287,2]
[374850927,1753455036123,-579.95,0.00023287,2]
[374850928,1753455036132,-578.75,0.00023287,2]
[374850929,1753455036141,-460.0,0.00023287,2]
[374850930,1753455036150,-474.81,0.00023287,2]
[374850931,1753455036161,-460.0,0.00023287,2]
[374850932,1753455036170,-2257.21,0.00023287,2]
[374850933,1753455036179,-2562.32,0.000233,7]
[374850934,1753455036189,-939.02271808,0.000233,2]
[374850936,1753455036199,-44281.82440569,0.000234,2]
[374850938,1753455036208,-648.0,0.00023438,2]
[374850940,1753455036218,-2157.0,0.00023438,2]
[374850942,1753455036227,-407.0,0.00023438,2]
[374850944,1753455036236,-421.487,0.00023438,2]
[374850946,1753455036246,-969.0,0.00023438,2]
[374850947,1753455036256,-577.7720337,0.00023452,2]
[374850949,1753455036265,-306.0,0.00023452,2]
[374850951,1753455036275,-577.7720337,0.00023452,2]
[374850953,1753455036284,-569.6176267,0.00023452,2]
[374850954,1753455036294,-318.2074684,0.00023452,2]
[374850955,1753455036304,-356.3491356,0.00023452,2]
[374850957,1753455036314,-577.5430988,0.00023452,2]
[374850958,1753455036324,-168.0,0.00023513,2]
[374850959,1753455036334,-460.0,0.0002356,2]
[374850960,1753455036344,-460.0,0.0002356,2]
[374850961,1753455036354,-700.51,0.0002356,2]
[374850963,1753455036367,-624.07,0.00023561,2]
[374850967,1753455036400,-541.31,0.00023561,2]
[374850969,1753455036410,-604.7,0.00023561,2]
[374850971,1753455036419,-460.0,0.00023561,2]
[374850973,1753455036429,-579.95,0.00023561,2]
[374850975,1753455036439,-578.75,0.00023561,2]
[374850977,1753455036449,-272.47,0.00023561,2]
[374850979,1753455036458,-181.89341186,0.00023561,2]
[374850981,1753455036467,-474.81,0.00023561,2]
[374850983,1753455036476,-460.0,0.00023561,2]
[374850985,1753455036486,-2257.21,0.00023561,2]
[374850987,1753455036495,-167.47247354,0.00023589,2]
[374850988,1753455036505,-1559.06,0.000236,7]
[374850990,1753455036514,-939.02271806,0.000237,2]
[374850992,1753455036523,-168.0,0.0002372,2]
[374850994,1753455036534,-168.0,0.00023727,2]
[374850996,1753455036547,-17886.15084021,0.00023728,3]
[374850998,1753455036556,-526.33361954,0.00023728,3]
[374851000,1753455036566,-312.16666667,0.00023728,3]
[374851002,1753455036575,-151.0,0.00023732,6]
[374851004,1753455036586,-160.0,0.00023735,3]
[374851006,1753455036596,-1242.71,0.00023738,2]
[374851008,1753455036606,-476.88235691,0.0002374,3]
[374851010,1753455036617,-168.0,0.00023762,2]
[374851012,1753455036627,-153.0,0.00023805,2]
[374851014,1753455036636,-153.0,0.00023805,2]
[374851016,1753455036645,-153.0,0.00023805,2]
[374851018,1753455036655,-153.0,0.00023805,2]
[374851020,1753455036665,-153.0,0.00023805,2]
[374851022,1753455036674,-153.0,0.00023805,2]
[374851024,1753455036683,-153.0,0.00023805,2]
[374851026,1753455036693,-153.0,0.00023808,2]
[374851028,1753455036703,-153.0,0.00023808,2]
[374851030,1753455036711,-153.0,0.00023808,2]
[374851032,1753455036721,-153.0,0.00023808,2]
[374851034,1753455036730,-153.0,0.00023808,2]
[374851036,1753455036739,-153.0,0.00023808,2]
[374851038,1753455036749,-153.0,0.00023808,2]
[374851040,1753455036758,-153.0,0.00023811,2]
[374851042,1753455036767,-153.0,0.00023811,2]
[374851044,1753455036777,-153.0,0.00023811,2]
[374851045,1753455036786,-153.0,0.00023811,2]
[374851047,1753455036796,-153.0,0.00023811,2]
[374851049,1753455036805,-153.0,0.00023811,2]
[374851051,1753455036815,-153.0,0.00023811,2]
[374851053,1753455036824,-153.0,0.00023814,2]
[374851055,1753455036834,-153.0,0.00023814,2]
[374851057,1753455036844,-153.0,0.00023814,2]
[374851059,1753455036853,-153.0,0.00023815,2]
[374851061,1753455036862,-153.0,0.00023815,2]
[374851063,1753455036872,-153.0,0.00023815,2]
[374851065,1753455036881,-153.0,0.00023815,2]
[374851067,1753455036891,-1068.64646337,0.00023821,2]
[374851069,1753455036900,-1000.0,0.00023821,2]
[374851071,1753455036910,-501.48761306,0.00023821,2]
[374851073,1753455036920,-1000.0,0.00023821,2]
[374851075,1753455036930,-500.0,0.00023821,2]
[374851077,1753455036939,-216.08866918,0.00023821,2]
[374851079,1753455036949,-1000.0,0.00023821,2]
[374851081,1753455036958,-500.0,0.00023821,2]
[374851083,1753455036968,-1000.0,0.00023821,2]
[374851085,1753455036977,-1000.0,0.00023821,2]
[374851087,1753455036987,-500.0,0.00023821,2]
[374851089,1753455036996,-1000.0,0.00023821,2]
[374851090,1753455037006,-506.76194603,0.00023821,2]
[374851092,1753455037016,-500.0,0.00023821,2]
[374851094,1753455037025,-500.0,0.00023821,2]
[374851096,1753455037036,-500.0,0.00023821,2]
[374851098,1753455037045,-500.0,0.00023821,2]
[374851100,1753455037055,-500.0,0.00023821,2]
[374851102,1753455037065,-526.56501023,0.00023821,2]
[374851104,1753455037075,-500.0,0.00023821,2]
[374851106,1753455037084,-500.0,0.00023821,2]
[374851108,1753455037094,-1078.78157681,0.00023821,2]
[374851110,1753455037104,-1000.0,0.00023821,2]
[374851112,1753455037113,-153.0,0.00023822,2]
[374851114,1753455037122,-460.0,0.00023834,2]
[374851116,1753455037132,-460.0,0.00023834,2]
[374851118,1753455037141,-700.51,0.00023834,2]
[374851120,1753455037151,-624.07,0.00023835,2]
[374851122,1753455037162,-541.31,0.00023835,2]
[374851124,1753455037172,-604.7,0.00023835,2]
[374851127,1753455037182,-460.0,0.00023835,2]
[374851130,1753455037192,-579.95,0.00023835,2]
[374851132,1753455037201,-578.75,0.00023835,2]
[374851134,1753455037211,-474.81,0.00023835,2]
[374851136,1753455037220,-460.0,0.00023835,2]
[374851138,1753455037229,-2257.21,0.00023835,2]
[374851140,1753455037239,-160.0,0.00023865,3]
[374851142,1753455037248,-168.0,0.00023882,2]
[374851144,1753455037258,-438.02620222,0.00023927,2]
[374851146,1753455037268,-7039.58092083,0.0002399,7]
[374851154,1753455037344,-509.16,0.00023013,2]
[374851156,1753455037355,-557.32780052,0.0002399,7]
[374851205,1753455037842,-460.0,0.00019178,2]
[374851207,1753455037853,-72.83477074,0.00019452,2]
[374851209,1753455037865,-387.16522926,0.00019452,2]
[374851211,1753455037875,-460.0,0.00019726,2]
[374851213,1753455037885,-156.0,0.00023014,7]
[374851215,1753455037895,-460.0,0.00023286,2]
[374851217,1753455037904,-509.16,0.00023287,2]
[374851219,1753455037915,-460.0,0.0002356,2]
[374851221,1753455037926,-509.16,0.00023561,2]
[374851223,1753455037936,-460.0,0.00023834,2]
[374851225,1753455037946,-509.16,0.00023835,2]
[374851227,1753455037956,-2045.60795562,0.0002399,7]
[374851229,1753455037966,-312.16666667,0.0002399,7]
[374851231,1753455037976,-160.0,0.00024,7]
[374851233,1753455037986,-526.33361954,0.00024,7]
[374851235,1753455037995,-642.0,0.00024,2]
[374851237,1753455038005,-156.009355,0.00024029,2]
[374851239,1753455038015,-3765.23717392,0.000241,7]
[374853441,1753455637698,617.321753,0.00013699,2]
[374853447,1753456042792,1019.94,0.00026027,120]
[374853449,1753456187875,5000.0,0.000176,6]
[374853450,1753456201429,581.0,0.00026027,120]
[374853451,1753456204639,5000.0,0.000176,6]
[374853522,1753456232066,-2755.19,0.00017502,2]
[374853526,1753456232078,-2244.81,0.00017502,2]
[374853529,1753456232088,-208.10849459,0.00017679,2]
[374853532,1753456232098,-1847.7132734,0.00017958,2]
[374853535,1753456232108,-300.0,0.0001806,2]
[374853537,1753456232117,-300.0,0.0001806,2]
[374853539,1753456232127,-300.0,0.0001806,2]
[374853541,1753456232137,-634.02928108,0.0001806,2]
[374853549,1753456232205,-318.84,0.0001806,2]
[374853551,1753456232217,-247.13071892,0.0001806,2]
[374853553,1753456232227,-788.53713025,0.00018061,2]
[374854088,1753456238144,-24111.46286975,0.00018061,2]
[374854089,1753456238158,-156.4720611,0.00018303,2]
[374854090,1753456238169,-191.86822548,0.00018603,2]
[374854091,1753456238181,-268.94902318,0.00019078,2]
[374854092,1753456238191,-312.16666667,0.00019153,2]
[374854093,1753456238200,-500.0,0.00019173,2]
[374854094,1753456238210,-507.57266618,0.00019173,2]
[374854095,1753456238219,-500.0,0.00019173,2]
[374854096,1753456238229,-460.0,0.00019178,2]
[374854097,1753456238239,-460.0,0.00019178,2]
[374854098,1753456238248,-460.0,0.00019178,2]
[374854099,1753456238258,-460.0,0.00019178,2]
[374854100,1753456238268,-460.0,0.00019178,2]
[374854101,1753456238278,-460.0,0.00019178,2]
[374854102,1753456238288,-460.0,0.00019178,2]
[374854103,1753456238297,-460.0,0.00019178,2]
[374854104,1753456238307,-464.89243476,0.00019178,2]
[374854105,1753456238316,-460.0,0.00019178,2]
[374854106,1753456238326,-460.0,0.00019178,2]
[374854107,1753456238336,-460.0,0.00019178,2]
[374854108,1753456238346,-460.0,0.00019178,2]
[374854109,1753456238355,-460.0,0.00019178,2]
[374854110,1753456238365,-460.0,0.00019178,2]
[374854111,1753456238375,-460.0,0.00019178,2]
[374854112,1753456238385,-460.0,0.00019178,2]
[374854113,1753456238394,-257.47516588,0.00019178,2]
[374854114,1753456238405,-555.0,0.00019178,2]
[374854115,1753456238415,-460.0,0.00019178,2]
[374854116,1753456238425,-151.0,0.00019178,2]
[374854117,1753456238434,-460.0,0.00019178,2]
[374854118,1753456238444,-151.0,0.00019178,2]
[374854119,1753456238453,-151.0,0.00019178,2]
[374854120,1753456238463,-460.0,0.00019178,2]
[374854121,1753456238472,-151.0,0.00019178,2]
[374854122,1753456238482,-151.0,0.00019178,2]
[374854123,1753456238491,-151.0,0.00019178,2]
[374854124,1753456238500,-151.0,0.00019178,2]
[374854125,1753456238510,-151.0,0.00019178,2]
[374854126,1753456238519,-151.0,0.00019178,2]
[374854127,1753456238528,-460.0,0.00019178,2]
[374854128,1753456238537,-151.0,0.00019178,2]
[374854129,1753456238547,-460.0,0.00019178,2]
[374854130,1753456238556,-460.0,0.00019178,2]
[374854131,1753456238566,-460.0,0.00019178,2]
[374854132,1753456238576,-460.0,0.00019178,2]
[374854133,1753456238586,-460.0,0.00019178,2]
[374854134,1753456238595,-460.0,0.00019178,2]
[374854135,1753456238605,-460.0,0.00019178,2]
[374854136,1753456238614,-460.0,0.00019178,2]
[374854137,1753456238624,-460.0,0.00019178,2]
[374854138,1753456238634,-460.0,0.00019178,2]
[374854139,1753456238643,-460.0,0.00019178,2]
[374854140,1753456238654,-460.0,0.00019178,2]
[374854141,1753456238664,-460.0,0.00019178,2]
[374854143,1753456238674,-460.0,0.00019178,2]
[374854145,1753456238695,-460.0,0.00019178,2]
[374854147,1753456238712,-460.0,0.00019178,2]
[374854149,1753456238721,-462.90702944,0.00019178,2]
[374854151,1753456238731,-212.04787604,0.00019178,2]
[374854153,1753456238742,-460.0,0.00019178,2]
[374854155,1753456238751,-460.0,0.00019178,2]
[374854157,1753456238761,-460.0,0.00019178,2]
[374854159,1753456238770,-460.87807703,0.00019178,2]
[374854161,1753456238780,-460.0,0.00019178,2]
[374854163,1753456238790,-460.0,0.00019178,2]
[374854166,1753456238800,-460.0,0.00019178,2]
[374854168,1753456238810,-460.0,0.00019178,2]
[374854170,1753456238819,-500.0,0.00019178,2]
[374854172,1753456238829,-460.0,0.00019178,2]
[374854174,1753456238838,-460.0,0.00019178,2]
[374854176,1753456238847,-460.0,0.00019178,2]
[374854178,1753456238858,-460.0,0.00019178,2]
[374854179,1753456238867,-560.07,0.00019178,2]
[374854182,1753456238877,-460.0,0.00019178,2]
[374854184,1753456238886,-460.0,0.00019178,2]
[374854185,1753456238905,-1023.56,0.00019178,2]
[374854187,1753456238914,-460.0,0.00019178,2]
[374854190,1753456238924,-460.0,0.00019178,2]
[374854191,1753456238935,-460.0,0.00019178,2]
[374854193,1753456238944,-460.0,0.00019178,2]
[374854196,1753456238954,-460.0,0.00019178,2]
[374854198,1753456238972,-460.0,0.00019178,2]
[374854200,1753456238983,-460.0,0.00019178,2]
[374854202,1753456238993,-460.0,0.00019178,2]
[374854204,1753456239002,-460.0,0.00019178,2]
[374854206,1753456239011,-460.0,0.00019178,2]
[374854207,1753456239021,-460.0,0.00019178,2]
[374854209,1753456239031,-460.0,0.00019178,2]
[374854211,1753456239040,-460.0,0.00019178,2]
[374854213,1753456239053,-460.0,0.00019178,2]
[374854215,1753456239063,-1338.16,0.00019178,2]
[374854218,1753456239074,-500.0,0.00019178,2]
[374854219,1753456239084,-460.0,0.00019178,2]
[374854221,1753456239094,-352.47538573,0.00019178,2]
[374854224,1753456239104,-460.0,0.00019178,2]
[374854226,1753456239113,-460.0,0.00019178,2]
[374854227,1753456239123,-198.69371496,0.00019178,2]
[374854229,1753456239132,-1139.23,0.00019178,2]
[374854231,1753456239141,-151.0,0.00019178,2]
[374854233,1753456239152,-151.0,0.00019178,2]
[374854235,1753456239161,-151.0,0.00019178,2]
[374854237,1753456239170,-266.78977484,0.00019178,2]
[374854238,1753456239180,-460.0,0.00019178,2]
[374854240,1753456239189,-460.0,0.00019178,2]
[374854242,1753456239198,-460.0,0.00019178,2]
[374854244,1753456239207,-460.0,0.00019178,2]
[374854246,1753456239216,-460.0,0.00019178,2]
[374854248,1753456239225,-335.36308772,0.00019178,2]
[374854250,1753456239234,-460.0,0.00019178,2]
[374854252,1753456239243,-460.0,0.00019178,2]
[374854254,1753456239253,-460.0,0.00019178,2]
[374854256,1753456239262,-429.59949589,0.00019178,2]
[374854258,1753456239272,-460.0,0.00019178,2]
[374854260,1753456239282,-460.0,0.00019178,2]
[374854262,1753456239291,-460.0,0.00019178,2]
[374854264,1753456239301,-154.09278747,0.00019178,2]
[374854266,1753456239311,-460.0,0.00019178,2]
[374854268,1753456239320,-460.0,0.00019178,2]
[374854270,1753456239329,-460.0,0.00019178,2]
[374854272,1753456239339,-460.0,0.00019178,2]
[374854274,1753456239349,-379.26921026,0.00019178,2]
[374854276,1753456239358,-460.0,0.00019178,2]
[374854278,1753456239368,-151.0,0.00019178,2]
[374854280,1753456239377,-151.0,0.00019178,2]
[374854282,1753456239387,-460.0,0.00019178,2]
[374854284,1753456239397,-460.0,0.00019178,2]
[374854287,1753456239410,-460.0,0.00019178,2]
[374854288,1753456239419,-460.0,0.00019178,2]
[374854292,1753456239428,-460.0,0.00019178,2]
[374854295,1753456239438,-460.0,0.00019178,2]
[374854297,1753456239448,-460.0,0.00019178,2]
[374854299,1753456239458,-460.0,0.00019178,2]
[374854301,1753456239467,-460.0,0.00019178,2]
[374854304,1753456239476,-460.0,0.00019178,2]
[374854305,1753456239485,-464.02410599,0.00019178,2]
[374854307,1753456239495,-632.61,0.00019178,2]
[374854310,1753456239504,-460.0,0.00019178,2]
[374854311,1753456239514,-460.0,0.00019178,2]
[374854313,1753456239523,-460.0,0.00019178,2]
[374854316,1753456239533,-464.19005534,0.00019178,2]
[374854317,1753456239542,-500.0,0.00019178,2]
[374854319,1753456239551,-460.0,0.00019178,2]
[374854321,1753456239561,-460.0,0.00019178,2]
[374854324,1753456239571,-460.0,0.00019178,2]
[374854325,1753456239580,-378.79322116,0.00019178,2]
[374854327,1753456239589,-460.0,0.00019178,2]
[374854329,1753456239599,-460.0,0.00019178,2]
[374854332,1753456239608,-460.0,0.00019178,2]
[374854334,1753456239618,-462.9255164,0.00019178,2]
[374854337,1753456239627,-671.63,0.00019178,2]
[374854339,1753456239637,-460.0,0.00019178,2]
[374854340,1753456239646,-460.0,0.00019178,2]
[374854344,1753456239658,-460.0,0.00019178,2]
[374854347,1753456239668,-460.0,0.00019178,2]
[374854349,1753456239677,-460.0,0.00019178,2]
[374854351,1753456239687,-460.0,0.00019178,2]
[374854353,1753456239696,-460.0,0.00019178,2]
[374854355,1753456239706,-460.0,0.00019178,2]
[374854357,1753456239715,-460.0,0.00019178,2]
[374854358,1753456239724,-460.0,0.00019178,2]
[374854361,1753456239734,-447.79876407,0.00019178,2]
[374854363,1753456239744,-3307.25,0.00019178,2]
[374854364,1753456239753,-460.0,0.00019178,2]
[374854366,1753456239762,-460.0,0.00019178,2]
[374854368,1753456239772,-884.04,0.00019178,2]
[374854371,1753456239782,-465.99348425,0.00019178,2]
[374854372,1753456239791,-460.0,0.00019178,2]
[374854375,1753456239801,-460.0,0.00019178,2]
[374854377,1753456239810,-460.0,0.00019178,2]
[374854379,1753456239820,-460.0,0.00019178,2]
[374854381,1753456239830,-460.0,0.00019178,2]
[374854383,1753456239839,-462.64319519,0.00019178,2]
[374854385,1753456239849,-460.0,0.00019178,2]
[374854387,1753456239859,-460.0,0.00019178,2]
[374854389,1753456239872,-460.0,0.00019178,2]
[374854391,1753456239881,-460.0,0.00019178,2]
[374854393,1753456239891,-460.0,0.00019178,2]
[374854395,1753456239907,-460.0,0.00019178,2]
[374854397,1753456239916,-460.0,0.00019178,2]
[374854399,1753456239926,-2323.72483921,0.00019352,2]
[374854401,1753456239937,-212.31,0.00019419,2]
[374854403,1753456239947,-730.7,0.00019442,3]
[374854405,1753456239956,-555.0,0.00019452,2]
[374854407,1753456239965,-151.0,0.00019452,2]
[374854409,1753456239978,-245.0,0.00019452,2]
[374854411,1753456239988,-500.0,0.00019452,2]
[374854413,1753456239998,-151.0,0.00019452,2]
[374854415,1753456240008,-198.0,0.00019452,2]
[374854417,1753456240018,-151.0,0.00019452,2]
[374854419,1753456240027,-460.0,0.00019452,2]
[374854421,1753456240038,-460.0,0.00019452,2]
[374854423,1753456240048,-460.0,0.00019452,2]
[374854425,1753456240057,-460.0,0.00019452,2]
[374854427,1753456240067,-460.0,0.00019452,2]
[374854429,1753456240077,-460.0,0.00019452,2]
[374854431,1753456240086,-460.0,0.00019452,2]
[374854433,1753456240096,-460.0,0.00019452,2]
[374854435,1753456240105,-460.0,0.00019452,2]
[374854437,1753456240114,-460.0,0.00019452,2]
[374854439,1753456240124,-460.0,0.00019452,2]
[374854441,1753456240133,-460.0,0.00019452,2]
[374854443,1753456240143,-460.0,0.00019452,2]
[374854446,1753456240155,-497.13968117,0.00019452,2]
[374854448,1753456240164,-460.0,0.00019452,2]
[374854449,1753456240174,-460.0,0.00019452,2]
[374854452,1753456240184,-423.4382081,0.00019452,2]
[374854453,1753456240194,-547.63804889,0.00019452,2]
[374854456,1753456240203,-460.0,0.00019452,2]
[374854469,1753456240320,-460.0,0.00019452,2]
[374854471,1753456240331,-460.0,0.00019452,2]
[374854473,1753456240341,-460.0,0.00019452,2]
[374854475,1753456240350,-1023.56,0.00019452,2]
[374854477,1753456240360,-460.0,0.00019452,2]
[374854479,1753456240370,-460.0,0.00019452,2]
[374854481,1753456240379,-460.0,0.00019452,2]
[374854483,1753456240389,-460.0,0.00019452,2]
[374854485,1753456240400,-460.0,0.00019452,2]
[374854487,1753456240410,-460.0,0.00019452,2]
[374854489,1753456240420,-460.0,0.00019452,2]
[374854491,1753456240430,-460.0,0.00019452,2]
[374854493,1753456240439,-460.0,0.00019452,2]
[374854495,1753456240449,-460.0,0.00019452,2]
[374854497,1753456240458,-1338.16,0.00019452,2]
[374854499,1753456240467,-460.0,0.00019452,2]
[374854501,1753456240477,-460.0,0.00019452,2]
[374854503,1753456240486,-1139.23,0.00019452,2]
[374854505,1753456240496,-460.0,0.00019452,2]
[374854507,1753456240506,-460.0,0.00019452,2]
[374854509,1753456240515,-460.0,0.00019452,2]
[374854511,1753456240524,-460.0,0.00019452,2]
[374854513,1753456240534,-460.0,0.00019452,2]
[374854515,1753456240543,-460.0,0.00019452,2]
[374854517,1753456240553,-460.0,0.00019452,2]
[374854519,1753456240562,-460.0,0.00019452,2]
[374854521,1753456240571,-460.0,0.00019452,2]
[374854523,1753456240581,-460.0,0.00019452,2]
[374854525,1753456240590,-460.0,0.00019452,2]
[374854527,1753456240599,-460.0,0.00019452,2]
[374854529,1753456240609,-460.0,0.00019452,2]
[374854531,1753456240619,-460.0,0.00019452,2]
[374854533,1753456240629,-460.0,0.00019452,2]
[374854535,1753456240638,-460.0,0.00019452,2]
[374854537,1753456240647,-460.0,0.00019452,2]
[374854539,1753456240659,-460.0,0.00019452,2]
[374854541,1753456240668,-460.0,0.00019452,2]
[374854543,1753456240679,-460.0,0.00019452,2]
[374854545,1753456240689,-460.0,0.00019452,2]
[374854547,1753456240698,-632.61,0.00019452,2]
[374854550,1753456240708,-460.0,0.00019452,2]
[374854551,1753456240717,-460.0,0.00019452,2]
[374854554,1753456240727,-580.54802677,0.00019452,2]
[374854556,1753456240736,-541.02902111,0.00019452,2]
[374854558,1753456240745,-460.0,0.00019452,2]
[374854559,1753456240755,-460.0,0.00019452,2]
[374854561,1753456240765,-460.0,0.00019452,2]
[374854563,1753456240775,-460.0,0.00019452,2]
[374854565,1753456240784,-460.0,0.00019452,2]
[374854568,1753456240794,-671.63,0.00019452,2]
[374854570,1753456240804,-460.0,0.00019452,2]
[374854572,1753456240813,-460.0,0.00019452,2]
[374854574,1753456240822,-460.0,0.00019452,2]
[374854575,1753456240831,-460.0,0.00019452,2]
[374854577,1753456240841,-3307.25,0.00019452,2]
[374854579,1753456240852,-460.0,0.00019452,2]
[374854581,1753456240861,-884.04,0.00019452,2]
[374854583,1753456240871,-460.0,0.00019452,2]
[374854585,1753456240880,-460.0,0.00019452,2]
[374854587,1753456240891,-460.0,0.00019452,2]
[374854590,1753456240904,-460.0,0.00019452,2]
[374854592,1753456240913,-460.0,0.00019452,2]
[374854594,1753456240922,-460.0,0.00019452,2]
[374854595,1753456240932,-460.0,0.00019452,2]
[374854597,1753456240943,-460.0,0.00019452,2]
[374854600,1753456240953,-460.0,0.00019452,2]
[374854602,1753456240963,-460.0,0.00019452,2]
[374854604,1753456240974,-208.10849459,0.00019626,2]
[374854606,1753456240983,-420.0,0.00019704,2]
[374854608,1753456240993,-1000.0,0.00019721,2]
[374854610,1753456241003,-500.0,0.00019721,2]
[374854612,1753456241012,-555.0,0.00019726,2]
[374854614,1753456241022,-151.0,0.00019726,2]
[374854616,1753456241031,-500.0,0.00019726,2]
[374854618,1753456241041,-151.0,0.00019726,2]
[374854620,1753456241050,-151.0,0.00019726,2]
[374854622,1753456241060,-460.0,0.00019726,2]
[374854624,1753456241070,-460.0,0.00019726,2]
[374854626,1753456241079,-460.0,0.00019726,2]
[374854628,1753456241088,-460.0,0.00019726,2]
[374854630,1753456241098,-460.0,0.00019726,2]
[374854632,1753456241108,-519.92,0.00019726,2]
[374854634,1753456241118,-460.0,0.00019726,2]
[374854636,1753456241127,-460.0,0.00019726,2]
[374854638,1753456241137,-1023.56,0.00019726,2]
[374854640,1753456241146,-460.0,0.00019726,2]
[374854642,1753456241158,-460.0,0.00019726,2]
[374854644,1753456241167,-460.0,0.00019726,2]
[374854645,1753456241177,-460.0,0.00019726,2]
[374854647,1753456241186,-460.0,0.00019726,2]
[374854649,1753456241196,-460.0,0.00019726,2]
[374854651,1753456241207,-460.0,0.00019726,2]
[374854652,1753456241216,-460.0,0.00019726,2]
[374854654,1753456241226,-460.0,0.00019726,2]
[374854656,1753456241235,-1338.16,0.00019726,2]
[374854658,1753456241245,-460.0,0.00019726,2]
[374854659,1753456241255,-460.0,0.00019726,2]
[374854661,1753456241264,-1139.23,0.00019726,2]
[374854663,1753456241274,-460.0,0.00019726,2]
[374854665,1753456241283,-460.0,0.00019726,2]
[374854666,1753456241291,-396.62405628,0.00019726,2]
[374854668,1753456241301,-460.0,0.00019726,2]
[374854670,1753456241310,-460.0,0.00019726,2]
[374854671,1753456241319,-460.0,0.00019726,2]
[374854673,1753456241328,-460.0,0.00019726,2]
[374854675,1753456241338,-460.0,0.00019726,2]
[374854677,1753456241348,-460.0,0.00019726,2]
[374854679,1753456241359,-460.0,0.00019726,2]
[374854681,1753456241368,-460.0,0.00019726,2]
[374854682,1753456241377,-460.0,0.00019726,2]
[374854684,1753456241386,-460.0,0.00019726,2]
[374854686,1753456241396,-460.0,0.00019726,2]
[374854688,1753456241407,-460.0,0.00019726,2]
[374854689,1753456241417,-460.0,0.00019726,2]
[374854691,1753456241426,-632.61,0.00019726,2]
[374854693,1753456241436,-460.0,0.00019726,2]
[374854695,1753456241446,-460.0,0.00019726,2]
[374854697,1753456241455,-476.06802245,0.00019726,2]